Cogmind - Beta 17.1 @@@ ROGUE MODE // 2026.09.23 @ 11:59:24 Player: McSaucyNugget Result: Destroyed by NV-86T(R) with Subdweller Machine Gun Performance ------------- Evolutions (0) 0 Regions Visited (2) 400 Robots Destroyed (17) 85 Value Destroyed (371) 371 Prototype IDs (2) 40 Alien Tech Used (0) 0 Bonus (0) 0 TOTAL SCORE: 896 Bonus ------- None Cogmind --------- Core Integrity 0/250 Matter 41/300 Energy 265/265 System Corruption 0% Temperature Cool (0) Movement Treading (240) Ox1 Location -10/Subcaves Parts ------- > --- POWER (1) -------- Improved Ion Engine > --- PROPULSION (2) --- Light Treads > --- UTILITY (2) ------ Improved Heat Sink Large Storage Unit > --- WEAPON (2) ------- Improved Light Cannon Improved Light Cannon > --- INVENTORY (15) --- Ion Engine Aluminum Leg Huge Storage Unit EM Pulse Gun Medium Laser Small Laser Particle Gun Improved Light Cannon Improved Light Cannon Grenade Launcher Datajack Multitool Peak State ------------ > --- POWER ------------ Improved Ion Engine > --- PROPULSION ------- Light Treads Light Treads > --- UTILITY ---------- Improved Heat Sink Huge Storage Unit > --- WEAPON ----------- Improved Light Cannon Improved Light Cannon > --- INVENTORY -------- Ion Engine Aluminum Leg Large Storage Unit EM Pulse Gun Medium Laser Small Laser Particle Gun Light Cannon Grenade Launcher Datajack [Rating: 13] Favorites ----------- Power Improved Ion Engine Engine Improved Ion Engine Propulsion Light Treads Treads Light Treads Utility Improved Heat Sink Device Improved Heat Sink Storage Large Storage Unit Weapon Improved Light Cannon Energy Gun Medium Laser Ballistic Cannon Improved Light Cannon Launcher Grenade Launcher Build | -11 -10 -10 ------- Run | Yrd Mat Sub Slots Evolved . | . . . Power . | . . . Propulsion . | . . . Utility . | . . . Weapon . | . . . Parts Attached 18 | 7 8 3 Power 2 | 1 1 . Engine 2 | 1 1 . Core . | . . . Reactor . | . . . Propulsion 2 | 2 . . Treads 2 | 2 . . Leg . | . . . Wheel . | . . . Hover . | . . . Flight . | . . . Utility 5 | 1 4 . Device 2 | . 2 . Storage 3 | 1 2 . Processor . | . . . Hackware . | . . . Protection . | . . . Artifact . | . . . Weapon 9 | 3 3 3 Energy Gun 4 | 3 1 . Energy Cannon . | . . . Ballistic Gun . | . . . Ballistic Cannon 4 | . 2 2 Launcher 1 | . . 1 Special Weapon . | . . . Impact Weapon . | . . . Slashing Weapon . | . . . Piercing Weapon . | . . . Special Melee Weapon . | . . . Unidentified Prototypes . | . . . Parts Lost 1 | . . 1 Power . | . . . Propulsion 1 | . . 1 Utility . | . . . Weapon . | . . . Highest Loss Streak 1 | . . 1 To Critical Strikes . | . . . Average Backups 7 | . 6 11 Power . | . 1 1 Propulsion . | . . 1 Utility . | . . 1 Weapon 4 | . 3 7 Tool/Special . | . . . Unused Backups 6 | . 2 4 Power 1 | . . 1 Propulsion 1 | . . 1 Utility . | . . . Weapon 3 | . 2 1 Tool/Special 1 | . . 1 Average Slot Usage (%) 96 | . 93 99 Engine 14 | . 14 14 Treads 27 | . 28 27 Device 10 | . 7 14 Storage 14 | . 14 14 Energy Gun 10 | . 19 . Ballistic Cannon 17 | . 8 27 Peak Build Rating 13 | 6 13 13 Average Rating 10 | 3 9 12 On Entrance 6 | . 6 13 Avg Prop Armor Cover (%) . | . . . Naked Turns . | . . . Heaviest Build 96 | 11 96 36 Greatest Support 40 | 40 40 40 Greatest Overweight (x) 2 | . 2 1 Average Overweight (x) . | . 1 . Largest Inventory Capacity 25 | 8 25 25 Average Capacity 17 | 6 21 15 Most Carried 12 | 2 12 12 Average Carried 7 | . 6 11 Final Capacity 25 | 8 25 15 Final Carried 12 | 2 11 12 Class Distribution -------------------- 100% | Mutant Dominant Class ---------------- Mutant | -10/Materials Mutant | -10/Subcaves Resources | -11 -10 -10 ----------- Run | Yrd Mat Sub Matter Collected 430 | 196 164 70 Remotely . | . . . Salvage Created 453 | . 401 52 Parts 28 | . 19 9 Haulers Intercepted 1 | . 1 . Recyclers Shooed . | . . . Parts Field Recycled . | . . . Retrieved Matter . | . . . Parts Self-Destructed 7 | . . 7 Prevented . | . . . Parts Restored . | . . . Kills | -11 -10 -10 ------- Run | Yrd Mat Sub Combat Hostiles Destroyed 13 | . 7 6 Guns 7 | . 7 . Cannons 3 | . . 3 AOE 3 | . . 3 Classes Destroyed 8 | . 6 2 Builder 1 | . 1 . Hauler 1 | . 1 . Recycler 1 | . 1 . Watcher 1 | . 1 . Swarmer 6 | . 3 3 Grunt 4 | . 4 . Artisan 2 | . . 2 Subdweller 3 | . . 3 Best Kill Streak 3 | . 3 3 Combat Bots Only 3 | . 2 3 Max Kills in Single Turn 2 | . 1 2 Gunslinging . | . . . Exploded 2 | . . 2 Melee . | . . . Uniques/NPCs Destroyed . | . . . Combat | -11 -10 -10 -------- Run | Yrd Mat Sub Hostile Shots Fired 71 | . 27 44 Missed 14 | . 2 12 Hits 57 | . 25 32 Projectile 57 | . 25 32 Critical Strikes 1 | . . 1 Damage Taken 973 | . 314 659 Core 253 | . 101 152 Absorbed by Shields . | . . . Core Remaining (%) 100 | 100 . . Volleys Fired 66 | . 27 39 Largest 2 | . 2 2 Hottest 115 | . 115 66 Shots Fired 117 | . 54 63 Gun 48 | . 48 . Cannon 66 | . 6 60 Launcher 3 | . . 3 Special . | . . . Kinetic 66 | . 6 60 Thermal 48 | . 48 . Explosive 3 | . . 3 Electromagnetic . | . . . Robot Hit Streak 9 | . 8 9 Robot Miss Streak 3 | . 3 3 Penetration Max . | . . . Secondary Targets 2 | . 2 . Max Gunslinging Chain 1 | . 1 . Shots Hit Robots 73 | . 36 37 Core Hits 28 | . 16 12 Critical Kills . | . . . Critical Parts Destroyed . | . . . Critical Strikes 3 | . 1 2 Burn 1 | . 1 . Blast 2 | . . 2 Melee Attacks . | . . . Impact . | . . . Slashing . | . . . Piercing . | . . . Sneak Attacks . | . . . Combat Hostiles . | . . . Follow-up Attacks . | . . . Damage Inflicted 1355 | . 480 875 Guns 442 | . 442 . Cannons 700 | . 38 662 Explosions 213 | . . 213 Melee . | . . . Ramming . | . . . Kinetic 700 | . 38 662 Thermal 442 | . 442 . Explosive 213 | . . 213 Electromagnetic . | . . . Impact . | . . . Slashing . | . . . Piercing . | . . . Highest Corruption . | . . . Average Corruption . | . . . Corruption Purged . | . . . Corruption Blocked . | . . . Overload Shots . | . . . Overflow Damage . | . . . Projectiles . | . . . Explosions . | . . . Melee . | . . . Knockbacks 9 | . . 9 Impact . | . . . Kinetic 9 | . . 9 Secondary . | . . . Self-Inflicted Damage 4 | . . 4 Shots 1 | . . 1 Rammed . | . . . Targets Rammed . | . . . Kicked . | . . . Crushed . | . . . Highest Temperature 442 | . 442 . Average Temperature 128 | . 128 . Received Heat Transfer 249 | . 165 84 Effects 1 | . 1 . Shutdowns 1 | . 1 . Siege Activations . | . . . Martial Activations . | . . . Shielding Activations . | . . . Robots Disrupted . | . . . Combat Hostiles . | . . . Robots Corrupted . | . . . Combat Hostiles . | . . . Parts Fried . | . . . Impact Corruptions . | . . . Robots Melted . | . . . Combat Hostiles . | . . . Parts Melted 2 | . 2 . Heat Transferred 1260 | . 1260 . Parts Sabotaged . | . . . Parts Stolen . | . . . Parts Stripped . | . . . Power Chain Reactions . | . . . Alert | -11 -10 -10 ------- Run | Yrd Mat Sub Maximum Alert Level . | . . . Low Security (%) 100 | 100 100 . Level 1 . | . . . Level 2 . | . . . Level 3 . | . . . Level 4 . | . . . Level 5 . | . . . High Security . | . . . Max Security . | . . . Peak Influence 93 | . 93 . Initial . | . . . Average 14 | . 16 . Influence Increases 287 | . 217 70 Destroy 0b10 Robot/C 200 | . 140 60 Destroy 0b10 Robot/NC 20 | . 20 . Destroy Leader 44 | . 34 10 Successful Hack 7 | . 7 . Destroy Structure 1 | . 1 . Lose Combat Pursuer 15 | . 15 . Influence Decreases 287 | . 217 70 Time Decay 287 | . 217 70 Squads Dispatched 1 | . 1 . Investigation . | . . . Extermination . | . . . Reinforcement 1 | . 1 . Assault . | . . . Garrison . | . . . Intercept . | . . . Searches Triggered . | . . . Construction Impeded . | . . . Haulers Reinforced . | . . . Active Scanning Responses . | . . . Cargo Convoy Interrupts . | . . . Stealth | -11 -10 -10 --------- Run | Yrd Mat Sub Distress Signals . | . . . Communications Jammed . | . . . Distress Signals . | . . . Times Spotted 21 | . 14 7 Peak Tracking Total 4 | . 4 3 Tactical Retreats 1 | . 1 . Traps | -11 -10 -10 ------- Run | Yrd Mat Sub Traps Triggered . | . . . Indirectly . | . . . Trap Hack Attempts . | . . . Triggered . | . . . Disarmed . | . . . Reprogrammed . | . . . Reused . | . . . Traps Extracted . | . . . Installed . | . . . Triggered . | . . . Machines | -11 -10 -10 ---------- Run | Yrd Mat Sub Machines Disabled . | . . . Max in Single Turn . | . . . Machines Repaired . | . . . Machines Dismantled . | . . . Machines Sabotaged . | . . . Overloaded Fab Kills . | . . . Hacking | -11 -10 -10 --------- Run | Yrd Mat Sub Machines Accessed 3 | . 2 1 Terminals 2 | . 2 . Fabricators . | . . . Repair Stations . | . . . Recycling Units . | . . . Scanalyzers . | . . . Garrison Access . | . . . Total Hacks 6 | . 3 3 Successful 6 | . 3 3 Failed . | . . . Catastrophic . | . . . Database Lockouts . | . . . Manual 1 | . 1 . Terminals 3 | . 3 . Fabricators . | . . . Repair Stations . | . . . Recycling Units . | . . . Scanalyzers . | . . . Garrison Access . | . . . Terminal Hacks 6 | . 3 3 Record 3 | . . 3 Part Schematic 1 | . 1 . Prototype ID Bank 1 | . 1 . Emergency Access Points 1 | . 1 . Fabricator Hacks . | . . . Repair Station Hacks . | . . . Recycling Unit Hacks . | . . . Scanalyzer . | . . . Garrison Access Hacks . | . . . Unauthorized Hacks . | . . . Terminals . | . . . Fabricators . | . . . Repair Stations . | . . . Recycling Units . | . . . Scanalyzers . | . . . Garrison Access . | . . . Data Cores Recovered . | . . . Used . | . . . Hacking Detections 1 | . 1 . Full Trace Events . | . . . Feedback Events . | . . . Feedback Blocked . | . . . Robot Schematics Acquired . | . . . Robots Built . | . . . Authchips . | . . . Time . | . . . Total Robot Build Rating . | . . . Part Schematics Acquired 1 | . 1 . Parts Built . | . . . Authchips . | . . . Time . | . . . Total Part Build Rating . | . . . Part Studies Acquired . | . . . Parts Repaired . | . . . Time . | . . . Parts Recycled . | . . . Recycled Matter . | . . . Retrieved Matter . | . . . Retrieved Components . | . . . Parts Scanalyzed . | . . . Part Schematics Acquired . | . . . Parts Damaged . | . . . Bothacking | -11 -10 -10 ------------ Run | Yrd Mat Sub Used RIF Installer . | . . . Robots Hacked . | . . . Non-combat . | . . . Combat . | . . . Robot Hacks Applied . | . . . Relay Couplers Released . | . . . Fabnet Peak Effective % . | . . . Robots Rewired . | . . . Allies Hacked . | . . . Hacks Repelled . | . . . Allies | -11 -10 -10 -------- Run | Yrd Mat Sub Total Allies . | . . . Largest Group . | . . . Highest-Rated Group . | . . . Highest-Rated Ally . | . . . Total Orders . | . . . Ally Attacks . | . . . Total Damage . | . . . Kills . | . . . Allies Corrupted . | . . . Allies Melted . | . . . Intel | -11 -10 -10 ------- Run | Yrd Mat Sub Active Infowar (turns) . | . . . Robot Analysis Total . | . . . Derelict Logs Recovered . | . . . Drone Launches . | . . . Drone Recoveries . | . . . Exploration | -11 -10 -10 ------------- Run | Yrd Mat Sub Turns Passed 2126 | 149 1099 878 Spaces Moved 942 | 89 389 464 Core 4 | 4 . . Treads 938 | 85 389 464 Legs . | . . . Wheels . | . . . Hover . | . . . Flight . | . . . Fastest Speed 50 | 50 160 160 Average Speed 197 | 155 250 160 Slowest Speed 320 | 160 320 240 Overloaded Moves . | . . . Propulsion Burnouts . | . . . Robots Hopped . | . . . Potential Cave-ins . | . . . Cave-ins Triggered . | . . . Exploration Rate (%) 32 | 5 59 34 Regions Visited 2 Branch Regions 1 Pre-discovered Areas . | . . . Known Exits Taken . | . . . Unknown Exits Taken 2 | 1 1 . Scrap Searched . | . . . Spaces Dug . | . . . Terrain Destroyed 17 | . . 17 Melee . | . . . Projectile . | . . . AOE 17 | . . 17 Terrain Rammed . | . . . Walls Destroyed . | . . . Machines Disabled . | . . . Actions | -11 -10 -10 --------- Run | Yrd Mat Sub Total 1092 | 98 462 532 Wait 43 | . 20 23 Move 940 | 88 388 464 Hop . | . . . Pick Up 12 | 2 9 1 Fast Attach 11 | 6 5 . Attach 1 | 1 . . Detach 5 | 1 4 . Swap 8 | . 3 5 Drop 6 | . 6 . Fire 66 | . 27 39 Melee . | . . . Ram . | . . . Kick . | . . . Crush . | . . . Escape Stasis . | . . . Rewire . | . . . Trap . | . . . Miscellaneous . | . . . Route ------- -11/Scrapyard -10/Materials (discovered 2 exits: [*Mat] / *Sub) -10/Subcaves (discovered 2 exits: [*Mat] / [*Scr]) History --------- Turn | Location | Event 16 | -11/Scrapyard | Discovered new exit (range 16) 150 | -11/Scrapyard | Entered Materials 326 | -10/Materials | Build established: Mutant 658 | -10/Materials | Discovered new exit (range 7) 1226 | -10/Materials | Discovered new exit (range 8) 1249 | -10/Materials | Entered Subcaves 1250 | -10/Subcaves | Approached by a straggling Scientist 1377 | -10/Subcaves | Scientist uncovered a shortcut to Scraptown 1587 | -10/Subcaves | Visited Clippyterm 1592 | -10/Subcaves | Learned Factory trap positions 1692 | -10/Subcaves | Discovered new exit (range 14) 2081 | -10/Subcaves | Ambushed by angry Subdweller bent on revenge 2082 | -10/Subcaves | Ambushed by angry Subdweller bent on revenge 2097 | -10/Subcaves | Core integrity fell below 50% 2113 | -10/Subcaves | Core integrity fell below 20% 2127 | -10/Subcaves | Destroyed by NV-86T(R) with Subdweller Machine Gun Last Messages --------------- 02079_ Subatomizers dissect the Multitool. 02081_ NV-86T(R) angrily emerges from the Twisted Machinery. 02081_ NV-86T(R): "ECOKILL!" 02082_ H8-6TN(R) angrily emerges from the Twisted Machinery. 02082_ H8-6TN(R): "ECOKILL!" 02086_ H8-6TN(R) knocked back. 02089_ Subatomizers dissect the Multitool. 02094_ H8-6TN(R) knocked back. 02104_ Subatomizers dissect the Multitool. 02106_ H8-6TN(R) Sub. Monowheel blasted off. 02106_ H8-6TN(R) knocked back. 02108_ Lgt. Treads destroyed. 02109_ H8-6TN(R) Sub. Power Source blasted off. 02112_ H8-6TN(R) destroyed. 02114_ Subatomizers dissect the Multitool. 02115_ NV-86T(R) knocked back. 02121_ Acquired 4 matter. 02124_ NV-86T(R) affixes Scrap Shield Fragment to Scrap Shield. 02126_ Subatomizers dissect the Wheel. 02126_ Acquired Multitool. Map ----- +----------------------------------------------------+ | | | | | | | | | | | | | | | ?????????????????????????????????????????????????? | | ?????????????????????????????????????????????????? | | ?????????????????????????????????????????????????? | | ?????????????????????????????????????????????????? | | ?????????????????????????????????????????????????? | | ?????????????????????????????????????????????????? | | ?????????????????????????????????????????????????? | | ?????????????????????????????????????????????????? | | ?????????????????????????????????????????????????? | | ?????????????????????????????????????????????????? | | ?????????????????????????????????????????????????? | | ?????????????????????????????????????????????????? | | ?????????????????????????????????????????????????? | | ?????????????????????????????????????????????????? | | ??????????????????????????###????????????????????? | | ???????????????????""?#####"###??????????????????# | | ???????????????????"""#"" """ #?????????????????## | | ?????????????????? """""" " #?????????????????# | | ??????????????????"""""" @ %#?????????????????#" | | ???????????????????###" %###???????????????# | | ?????????????????????### = % ##??????????????#" | | ????????????????????### "" =&% #??????????????## | | ????????????????????#""" """R*%%##???????????????# | | ????????????????????# """######????????????????# | | ????????????????????#" ### ##????????????????????# | | ????????????????????"" ??#""#????????????????????# | | ?????????????????? #""""## ###?###???????????????? | | ??????????????????""" "" ### #???????????????? | | ????????????????? ## "" ##???????????????? | | ?????????????????????##### #????????????????? | | ?????????????????????????# #????????????????? | | ?????????????????????????# # #????????????????? | | ?????????????????????????# ### #????????????????? | | ?????????????????????????# ## #????????????????? | | ?????????????????????????#### #????????????????? | | ????????????????????????????## #????????????????? | | ????????????????????????????## ##???????????????? | | ????????????????????????????# #???????????????? | | ????????????????????????????## #???????????????? | | ????????????????????????????# #???????????????? | | ????????????????????????????## ##???????????????? | | ?????????????????????????????# #????????????????? | | ????????????????????????????## #????????????????? | +----------------------------------------------------+ Best States ------------- Heat Dissipation 39 Energy Generation 12 Energy Capacity 265 Matter Stores 300 Matter Capacity 300 Sight Range 16 Terrain Scan Density 10 Evasion (%) 40 Recoil Reduction 2 Item Schematics ----------------- Hcp. Storage Unit | -10/Materials | Hacked Robot Schematics ------------------ None Fabricated ------------ Nothing Repaired ---------- Nothing Studied --------- None Alien Tech Used ----------------- None Achievements -------------- Nice Directions, Buddy Challenges ------------ None Game ------ Seed ProjectileDeflectorAutominer Manual? 0 Play Time 00:21:35 Cumulative 365.2 hours Start 2026.09.10 @ 11:27:37 End 2026.09.23 @ 11:59:24 Sessions 6 Manual Loads 0 Difficulty Rogue Special Mode None Game No. 153 Rogue 153 Adventurer 0 Explorer 0 Win Type - Total 38 Types 13/5/7/2/1/1/3/2/2/2 Lore% 86 Gallery% 80 Achievement% 77 Wizard Run 0 Options --------- Layout 0 ASCII 0 Keyboard 1 Movement Vi Keybinds 0 Fullscreen 2 Font 24/Smallcaps Map View 76x50 Zoom Use 0% Tactical HUD 1 Map Filters NONE Filters NONE Steam 1 RUN: 4295aa4c-5e18-4b55-b398-f0e35e52cd18